[Event "11th LCC FIDE Open 2019"]
[Site "London"]
[Date "2019.12.05"]
[Round "9.19"]
[White "Cumming, Rhys"]
[Black "Dias, Savin"]
[Result "1-0"]
[ECO "E32"]
[WhiteElo "2284"]
[BlackElo "1916"]
[Annotator "NA"]
[PlyCount "53"]
[EventDate "2019.11.29"]
[EventType "swiss"]
[EventCountry "ENG"]
[SourceTitle "playchess.com"]
[Source "ChessBase"]
[SourceQuality "1"]
[TimeControl "40/5400+30:1800+30"]

1. d4 {[%emt 0:32:24]} Nf6 {[%emt 0:00:00]} 2. c4 {[%emt 0:00:08]} e6 {[%emt 0:00:00]} 3. Nc3 {[%emt 0:00:06]} Bb4 {[%emt 0:00:00]} 4. Qc2 {[%emt 0:00:10]} O-O {[%emt 0:00:00]} 5. Nf3 {[%emt 0:00:22]} b6 {[%emt 0:00:12]} 6. e4 {[%emt 0:03:05]} d5 {[%emt 0:01:13]} 7. e5 {[%emt 0:05:45]} Ne4 {[%emt 0:00:52]} 8. Bd3 {[%emt 0:01:23]} Bb7 {[%emt 0:03:00]} 9. O-O {[%emt 0:02:19]} Bxc3 {[%emt 0:05:53]} 10. bxc3 {[%emt 0:00:06]} h6 {[%emt 0:06:01]} 11. cxd5 {[%emt 0:15:02]} exd5 {[%emt 0:00:50]} 12. Nd2 {[%emt 0:03:59]} Nxd2 {[%emt 0:01:19]} 13. Bxd2 {[%emt 0:01:02]} Ba6 {[%emt 0:04:36]} 14. Bh7+ {[%emt 0:07:52]} Kh8 {[%emt 0:00:20]} 15. Rfe1 {[%emt 0:00:03]} c5 {[%emt 0:11:00]} 16. e6 {[%emt 0:00:51]} Qf6 {[%emt 0:01:12]} 17. exf7 {[%emt 0:01:31]} Qxf7 {[%emt 0:01:12]} 18. Be3 {[%emt 0:01:03]} c4 {[%emt 0:03:11]} 19. Bc1 {[%emt 0:02:11]} Nc6 {[%emt 0:02:35]} 20. Bg6 {[%emt 0:00:59]} Qd7 {[%emt 0:02:00]} 21. Ba3 {[%emt 0:00:34]} Rf6 {[%emt 0:05:29]} 22. h4 {[%emt 0:01:57]} Qg4 {[%emt 0:04:22]} 23. h5 {[%emt 0:00:04]} Re6 {[%emt 0:01:31]} 24. Rxe6 {[%emt 0:02:40]} Qxe6 {[%emt 0:00:53]} 25. Qd2 {[%emt 0:00:01]} Rd8 {[%emt 0:02:35]} 26. Re1 {[%emt 0:00:17]} Qf6 {[%emt 0:00:29]} 27. Qe3 {[%emt 0:01:54]} 1-0

[Event "11th LCC FIDE Open 2019"]
[Site "London"]
[Date "2019.12.05"]
[Round "9.20"]
[White "Akots, Gabor"]
[Black "Balaji, Aaravamudhan"]
[Result "1/2-1/2"]
[ECO "A65"]
[WhiteElo "2221"]
[BlackElo "2080"]
[Annotator "NA"]
[PlyCount "66"]
[EventDate "2019.11.29"]
[EventType "swiss"]
[EventCountry "ENG"]
[SourceTitle "playchess.com"]
[Source "ChessBase"]
[SourceQuality "1"]
[TimeControl "40/5400+30:1800+30"]

1. d4 {[%emt 0:00:00]} Nf6 {[%emt 0:00:00]} 2. c4 {[%emt 0:00:00]} g6 {[%emt 0:00:00]} 3. Nc3 {[%emt 0:00:00]} Bg7 {[%emt 0:00:00]} 4. e4 {[%emt 0:00:20]} d6 {[%emt 0:00:00]} 5. f3 {[%emt 0:00:43]} O-O {[%emt 0:00:00]} 6. Be3 {[%emt 0:00:15]} c5 {[%emt 0:00:00]} 7. d5 {[%emt 0:00:32]} e6 {[%emt 0:02:14]} 8. Qd2 {[%emt 0:00:18]} exd5 {[%emt 0:00:13]} 9. cxd5 {[%emt 0:00:09]} a6 {[%emt 0:00:11]} 10. a4 {[%emt 0:00:06]} Nbd7 {[%emt 0:00:27]} 11. Nh3 {[%emt 0:03:45]} Ne5 {[%emt 0:02:20]} 12. Nf2 {[%emt 0:00:26]} Bd7 {[%emt 0:01:58]} 13. Be2 {[%emt 0:01:32]} b5 {[%emt 0:11:39]} 14. O-O {[%emt 0:00:32]} Rb8 {[%emt 0:26:15]} 15. axb5 {[%emt 0:00:08]} axb5 {[%emt 0:00:06]} 16. Rab1 {[%emt 0:05:22]} b4 {[%emt 0:07:21]} 17. Ncd1 {[%emt 0:00:54]} Qa5 {[%emt 0:02:28]} 18. b3 {[%emt 0:09:48]} Bb5 {[%emt 0:02:07]} 19. Nb2 {[%emt 0:12:06]} Bxe2 {[%emt 0:11:02]} 20. Qxe2 {[%emt 0:00:07]} Qa2 {[%emt 0:00:18]} 21. Qc2 {[%emt 0:02:22]} Ra8 {[%emt 0:02:52]} 22. Rfc1 {[%emt 0:01:52]} Ra3 {[%emt 0:03:24]} 23. Nbd3 {[%emt 0:05:18]} Qxc2 {[%emt 0:01:35]} 24. Rxc2 {[%emt 0:02:59]} Nxd3 {[%emt 0:00:39]} 25. Nxd3 {[%emt 0:00:05]} Rfa8 {[%emt 0:04:30]} 26. Bc1 {[%emt 0:22:06]} Ra1 {[%emt 0:08:05]} 27. Rxa1 {[%emt 0:00:14]} Rxa1 {[%emt 0:00:02]} 28. Kf2 {[%emt 0:00:11]} Rb1 {[%emt 0:02:42]} 29. Bb2 {[%emt 0:04:20]} Nd7 {[%emt 0:03:46]} 30. Bxg7 {[%emt 0:09:47]} Kxg7 {[%emt 0:00:18]} 31. Rb2 {[%emt 0:00:12]} Rd1 {[%emt 0:02:53]} 32. Ke2 {[%emt 0:00:07]} Rh1 {[%emt 0:01:21]} 33. h3 {[%emt 0:00:16]} Ra1 {[%emt 0:01:01]} 1/2-1/2

[Event "11th LCC FIDE Open 2019"]
[Site "London"]
[Date "2019.12.05"]
[Round "9.21"]
[White "Bucher, Grant W"]
[Black "Taylor, Adam C"]
[Result "0-1"]
[ECO "C36"]
[WhiteElo "2121"]
[BlackElo "2371"]
[Annotator "NA"]
[PlyCount "46"]
[EventDate "2019.11.29"]
[EventType "swiss"]
[EventCountry "ENG"]
[SourceTitle "playchess.com"]
[Source "ChessBase"]
[SourceQuality "1"]
[TimeControl "40/5400+30:1800+30"]

1. e4 {[%emt 0:00:00]} e5 {[%emt 0:00:00]} 2. f4 {[%emt 0:00:00]} d5 {[%emt 0:00:29]} 3. exd5 {[%emt 0:00:00]} exf4 {[%emt 0:00:08]} 4. Nf3 {[%emt 0:00:01]} Nf6 {[%emt 0:01:32]} 5. Bc4 {[%emt 0:00:15]} Qe7+ {[%emt 0:02:00]} 6. Qe2 {[%emt 0:01:31]} Qxe2+ {[%emt 0:02:04]} 7. Kxe2 {[%emt 0:02:28]} Bd6 {[%emt 0:03:10]} 8. Re1 {[%emt 0:03:27]} O-O {[%emt 0:00:29]} 9. Kf1 {[%emt 0:04:51]} Nbd7 {[%emt 0:01:40]} 10. Nc3 {[%emt 0:03:52]} a6 {[%emt 0:07:30]} 11. a4 {[%emt 0:07:04]} Nb6 {[%emt 0:07:16]} 12. Bb3 {[%emt 0:01:34]} Bg4 {[%emt 0:00:06]} 13. Ne5 {[%emt 0:17:38]} Rae8 {[%emt 0:13:06]} 14. d4 {[%emt 0:03:42]} g5 {[%emt 0:00:09]} 15. h4 {[%emt 0:05:14]} h6 {[%emt 0:00:43]} 16. hxg5 {[%emt 0:01:33]} hxg5 {[%emt 0:00:04]} 17. g3 {[%emt 0:00:42]} Bh3+ {[%emt 0:03:54]} 18. Kg1 {[%emt 0:05:01]} Ng4 {[%emt 0:00:19]} 19. gxf4 {[%emt 0:11:05]} f6 {[%emt 0:00:37]} 20. Ne4 {[%emt 0:06:18]} fxe5 {[%emt 0:02:20]} 21. dxe5 {[%emt 0:06:17]} gxf4 {[%emt 0:01:56]} 22. exd6 {[%emt 0:04:57]} f3 {[%emt 0:00:26]} 23. Bg5 {[%emt 0:01:34]} Rxe4 {[%emt 0:00:12]} 0-1

[Event "11th LCC FIDE Open 2019"]
[Site "London"]
[Date "2019.12.05"]
[Round "9.23"]
[White "Bates, Caspar J"]
[Black "Van Zyl-Rudd, Jack"]
[Result "0-1"]
[ECO "E14"]
[WhiteElo "2120"]
[BlackElo "2290"]
[Annotator "NA"]
[PlyCount "52"]
[EventDate "2019.11.29"]
[EventType "swiss"]
[EventCountry "ENG"]
[SourceTitle "playchess.com"]
[Source "ChessBase"]
[SourceQuality "1"]
[TimeControl "40/5400+30:1800+30"]

1. d4 {[%emt 0:00:00]} Nf6 {[%emt 0:00:00]} 2. c4 {[%emt 0:00:00]} e6 {[%emt 0:00:00]} 3. Nf3 {[%emt 0:00:00]} d5 {[%emt 0:00:00]} 4. e3 {[%emt 0:00:08]} b6 {[%emt 0:00:00]} 5. cxd5 {[%emt 0:01:05]} exd5 {[%emt 0:00:00]} 6. Bb5+ {[%emt 0:00:07]} c6 {[%emt 0:00:05]} 7. Bd3 {[%emt 0:00:09]} Bd6 {[%emt 0:00:04]} 8. Nc3 {[%emt 0:04:41]} O-O {[%emt 0:00:14]} 9. Bd2 {[%emt 0:07:14]} Re8 {[%emt 0:01:20]} 10. Rc1 {[%emt 0:00:54]} Ne4 {[%emt 0:02:51]} 11. a3 {[%emt 0:04:56]} Bg4 {[%emt 0:01:27]} 12. Be2 {[%emt 0:06:55]} Qf6 {[%emt 0:19:31]} 13. h3 {[%emt 0:05:06]} Qh6 {[%emt 0:12:16]} 14. Nxe4 {[%emt 0:13:43]} dxe4 {[%emt 0:00:08]} 15. Ng1 {[%emt 0:02:40]} Bd7 {[%emt 0:17:44]} 16. b4 {[%emt 0:12:28]} Qg6 {[%emt 0:04:52]} 17. Bf1 {[%emt 0:00:33]} a5 {[%emt 0:09:50]} 18. Ne2 {[%emt 0:01:24]} axb4 {[%emt 0:03:49]} 19. axb4 {[%emt 0:03:23]} Na6 {[%emt 0:01:16]} 20. Nf4 {[%emt 0:07:01]} Bxf4 {[%emt 0:00:23]} 21. exf4 {[%emt 0:00:26]} e3 {[%emt 0:02:15]} 22. Bxe3 {[%emt 0:01:14]} Nxb4 {[%emt 0:01:52]} 23. Qd2 {[%emt 0:06:49]} Nd5 {[%emt 0:04:15]} 24. Kd1 {[%emt 0:02:51]} Ra3 {[%emt 0:01:48]} 25. Bc4 {[%emt 0:01:12]} Raxe3 {[%emt 0:01:25]} 26. Bxd5 {[%emt 0:00:38]} Rd3 {[%emt 0:00:08]} 0-1

[Event "11th LCC FIDE Open 2019"]
[Site "London"]
[Date "2019.12.05"]
[Round "9.25"]
[White "Stoyanov, Viktor"]
[Black "Abrahams, Daniel"]
[Result "1/2-1/2"]
[ECO "B43"]
[WhiteElo "2272"]
[BlackElo "2185"]
[Annotator "NA"]
[PlyCount "76"]
[EventDate "2019.11.29"]
[EventType "swiss"]
[EventCountry "ENG"]
[SourceTitle "playchess.com"]
[Source "ChessBase"]
[SourceQuality "1"]
[TimeControl "40/5400+30:1800+30"]

1. e4 {[%emt 0:00:00]} c5 {[%emt 0:00:00]} 2. Nf3 {[%emt 0:00:00]} e6 {[%emt 0:00:00]} 3. d4 {[%emt 0:00:00]} cxd4 {[%emt 0:00:00]} 4. Nxd4 {[%emt 0:00:00]} a6 {[%emt 0:00:00]} 5. Nc3 {[%emt 0:00:03]} Qc7 {[%emt 0:00:20]} 6. Bd3 {[%emt 0:00:05]} Nf6 {[%emt 0:00:16]} 7. O-O {[%emt 0:00:10]} d6 {[%emt 0:00:21]} 8. Kh1 {[%emt 0:01:35]} Nbd7 {[%emt 0:00:23]} 9. Be3 {[%emt 0:00:15]} b5 {[%emt 0:00:44]} 10. a3 {[%emt 0:05:36]} Bb7 {[%emt 0:00:11]} 11. Qe2 {[%emt 0:01:13]} Nc5 {[%emt 0:00:37]} 12. Bd2 {[%emt 0:01:57]} Be7 {[%emt 0:00:29]} 13. b4 {[%emt 0:01:34]} Nxd3 {[%emt 0:00:09]} 14. cxd3 {[%emt 0:00:04]} O-O {[%emt 0:01:10]} 15. Rac1 {[%emt 0:02:16]} Qd7 {[%emt 0:00:25]} 16. f4 {[%emt 0:05:35]} Rfc8 {[%emt 0:01:28]} 17. Nb3 {[%emt 0:08:42]} Rc7 {[%emt 0:05:11]} 18. e5 {[%emt 0:13:07]} dxe5 {[%emt 0:00:30]} 19. fxe5 {[%emt 0:00:07]} Ne8 {[%emt 0:00:06]} 20. Ne4 {[%emt 0:00:45]} Bxe4 {[%emt 0:00:09]} 21. Qxe4 {[%emt 0:00:11]} Rac8 {[%emt 0:00:05]} 22. Rxc7 {[%emt 0:16:47]} Rxc7 {[%emt 0:04:05]} 23. h3 {[%emt 0:08:33]} Rc2 {[%emt 0:00:36]} 24. Be1 {[%emt 0:02:21]} Nc7 {[%emt 0:06:03]} 25. Qf3 {[%emt 0:04:10]} Bf8 {[%emt 0:01:00]} 26. Rf2 {[%emt 0:07:20]} Rxf2 {[%emt 0:01:34]} 27. Bxf2 {[%emt 0:00:05]} Nd5 {[%emt 0:00:25]} 28. Bc5 {[%emt 0:00:30]} Qc7 {[%emt 0:00:59]} 29. Bxf8 {[%emt 0:01:50]} Kxf8 {[%emt 0:00:29]} 30. Nc5 {[%emt 0:00:19]} Kg8 {[%emt 0:00:35]} 31. d4 {[%emt 0:04:24]} h6 {[%emt 0:01:08]} 32. Kh2 {[%emt 0:02:47]} a5 {[%emt 0:00:29]} 33. bxa5 {[%emt 0:00:13]} Qxa5 {[%emt 0:00:09]} 34. Nb7 {[%emt 0:01:58]} Qe1 {[%emt 0:02:52]} 35. Nd6 {[%emt 0:00:40]} Ne3 {[%emt 0:00:22]} 36. Qxf7+ {[%emt 0:02:22]} Kh7 {[%emt 0:00:07]} 37. Ne8 {[%emt 0:00:57]} Nf1+ {[%emt 0:00:10]} 38. Kg1 {[%emt 0:00:05]} Ne3+ {[%emt 0:00:22]} 1/2-1/2

[Event "11th LCC FIDE Open 2019"]
[Site "London"]
[Date "2019.12.05"]
[Round "9.26"]
[White "Orgler, Philipp"]
[Black "Czerw, Dawid"]
[Result "0-1"]
[ECO "D00"]
[WhiteElo "2047"]
[BlackElo "2255"]
[Annotator "NA"]
[PlyCount "50"]
[EventDate "2019.11.29"]
[EventType "swiss"]
[EventCountry "ENG"]
[SourceTitle "playchess.com"]
[Source "ChessBase"]
[SourceQuality "1"]
[TimeControl "40/5400+30:1800+30"]

1. d4 {[%emt 0:00:00]} Nf6 {[%emt 0:00:00]} 2. Nc3 {[%emt 0:00:00]} d5 {[%emt 0:00:00]} 3. Bf4 {[%emt 0:00:05]} a6 {[%emt 0:00:52]} 4. e3 {[%emt 0:04:15]} Bf5 {[%emt 0:00:47]} 5. f3 {[%emt 0:01:35]} e6 {[%emt 0:00:17]} 6. g4 {[%emt 0:00:58]} Bg6 {[%emt 0:00:06]} 7. h4 {[%emt 0:00:10]} h5 {[%emt 0:03:46]} 8. g5 {[%emt 0:00:32]} Nfd7 {[%emt 0:00:29]} 9. Bd3 {[%emt 0:01:42]} Bxd3 {[%emt 0:00:21]} 10. Qxd3 {[%emt 0:00:11]} c5 {[%emt 0:00:11]} 11. Nge2 {[%emt 0:03:00]} Nc6 {[%emt 0:01:17]} 12. e4 {[%emt 0:03:26]} Nb4 {[%emt 0:13:19]} 13. Qd2 {[%emt 0:05:52]} cxd4 {[%emt 0:00:11]} 14. Nd1 {[%emt 0:00:20]} dxe4 {[%emt 0:08:32]} 15. fxe4 {[%emt 0:02:52]} Nc6 {[%emt 0:01:40]} 16. g6 {[%emt 0:06:18]} fxg6 {[%emt 0:03:08]} 17. c3 {[%emt 0:05:50]} dxc3 {[%emt 0:01:43]} 18. Ndxc3 {[%emt 0:00:19]} Nde5 {[%emt 0:01:07]} 19. O-O-O {[%emt 0:01:00]} Qxd2+ {[%emt 0:01:29]} 20. Rxd2 {[%emt 0:00:17]} Be7 {[%emt 0:01:52]} 21. Bg3 {[%emt 0:04:25]} g5 {[%emt 0:02:34]} 22. Nd4 {[%emt 0:04:10]} Nxd4 {[%emt 0:06:22]} 23. Bxe5 {[%emt 0:04:11]} Nf3 {[%emt 0:00:07]} 24. Bxg7 {[%emt 0:00:16]} Rh7 {[%emt 0:00:05]} 25. Rf2 {[%emt 0:01:13]} g4 {[%emt 0:00:07]} 0-1

[Event "11th LCC FIDE Open 2019"]
[Site "London"]
[Date "2019.12.05"]
[Round "9.28"]
[White "Blackburn, Jonathan L B"]
[Black "Makkar, Rajat"]
[Result "1-0"]
[ECO "D31"]
[WhiteElo "2240"]
[BlackElo "2125"]
[Annotator "NA"]
[PlyCount "81"]
[EventDate "2019.11.29"]
[EventType "swiss"]
[EventCountry "ENG"]
[SourceTitle "playchess.com"]
[Source "ChessBase"]
[SourceQuality "1"]
[TimeControl "40/5400+30:1800+30"]

1. d4 {[%emt 0:00:00]} d5 {[%emt 0:00:00]} 2. c4 {[%emt 0:00:00]} c6 {[%emt 0:00:00]} 3. Nc3 {[%emt 0:00:00]} Nf6 {[%emt 0:00:40]} 4. e3 {[%emt 0:00:00]} e6 {[%emt 0:00:23]} 5. Bd2 {[%emt 0:00:07]} Nbd7 {[%emt 0:01:37]} 6. cxd5 {[%emt 0:01:38]} exd5 {[%emt 0:00:33]} 7. Bd3 {[%emt 0:00:19]} Bd6 {[%emt 0:01:33]} 8. g4 {[%emt 0:13:36]} Qe7 {[%emt 0:03:03]} 9. Qf3 {[%emt 0:06:25]} h6 {[%emt 0:06:20]} 10. h3 {[%emt 0:02:05]} Nf8 {[%emt 0:01:07]} 11. Nge2 {[%emt 0:22:26]} Ne6 {[%emt 0:02:14]} 12. Qg2 {[%emt 0:02:59]} Ng5 {[%emt 0:02:58]} 13. f4 {[%emt 0:00:57]} Nge4 {[%emt 0:01:10]} 14. Bxe4 {[%emt 0:00:31]} Nxe4 {[%emt 0:01:38]} 15. Nxe4 {[%emt 0:00:23]} dxe4 {[%emt 0:01:12]} 16. Ng3 {[%emt 0:01:37]} O-O {[%emt 0:01:02]} 17. Nxe4 {[%emt 0:02:39]} Bxf4 {[%emt 0:03:16]} 18. exf4 {[%emt 0:01:07]} Re8 {[%emt 0:02:38]} 19. Kf2 {[%emt 0:05:33]} Qxe4 {[%emt 0:00:36]} 20. Qxe4 {[%emt 0:00:22]} Rxe4 {[%emt 0:00:19]} 21. Rhe1 {[%emt 0:00:59]} Rxd4 {[%emt 0:04:45]} 22. Re8+ {[%emt 0:00:13]} Kh7 {[%emt 0:00:07]} 23. Bc3 {[%emt 0:05:00]} Rd7 {[%emt 0:01:47]} 24. a4 {[%emt 0:05:42]} a5 {[%emt 0:02:36]} 25. g5 {[%emt 0:04:15]} hxg5 {[%emt 0:11:21]} 26. Rg1 {[%emt 0:00:25]} Rd5 {[%emt 0:00:37]} 27. fxg5 {[%emt 0:05:43]} b6 {[%emt 0:01:39]} 28. Rf8 {[%emt 0:01:28]} Rd7 {[%emt 0:09:02]} 29. Rg4 {[%emt 0:05:03]} Rd5 {[%emt 0:00:43]} 30. Rh4+ {[%emt 0:03:08]} Kg6 {[%emt 0:00:08]} 31. Rhh8 {[%emt 0:00:29]} Rf5+ {[%emt 0:01:57]} 32. Ke3 {[%emt 0:00:51]} Ra7 {[%emt 0:01:16]} 33. Rxc8 {[%emt 0:00:32]} Re7+ {[%emt 0:00:08]} 34. Kd3 {[%emt 0:01:06]} Rd7+ {[%emt 0:00:59]} 35. Kc2 {[%emt 0:00:10]} Rc5 {[%emt 0:00:47]} 36. h4 {[%emt 0:00:40]} Rd4 {[%emt 0:00:37]} 37. Kb3 {[%emt 0:00:27]} Rdc4 {[%emt 0:00:41]} 38. Rcg8 {[%emt 0:01:38]} b5 {[%emt 0:00:29]} 39. Rxg7+ {[%emt 0:00:12]} Kf5 {[%emt 0:00:03]} 40. Rxf7+ {[%emt 0:00:07]} Kg4 {[%emt 0:00:04]} 41. g6 {[%emt 0:30:42]} 1-0

[Event "11th LCC FIDE Open 2019"]
[Site "London"]
[Date "2019.12.05"]
[Round "9.29"]
[White "Lee, Qing Aun"]
[Black "Pollack, Oscar"]
[Result "1-0"]
[ECO "C06"]
[WhiteElo "2228"]
[BlackElo "2112"]
[Annotator "NA"]
[PlyCount "75"]
[EventDate "2019.11.29"]
[EventType "swiss"]
[EventCountry "ENG"]
[SourceTitle "playchess.com"]
[Source "ChessBase"]
[SourceQuality "1"]
[TimeControl "40/5400+30:1800+30"]

1. e4 {[%emt 0:00:29]} e6 {[%emt 0:00:00]} 2. d4 {[%emt 0:00:14]} d5 {[%emt 0:00:00]} 3. Nd2 {[%emt 0:00:12]} Nf6 {[%emt 0:00:00]} 4. e5 {[%emt 0:00:09]} Nfd7 {[%emt 0:00:00]} 5. Bd3 {[%emt 0:00:21]} c5 {[%emt 0:00:00]} 6. c3 {[%emt 0:00:09]} Nc6 {[%emt 0:00:00]} 7. Ne2 {[%emt 0:00:10]} cxd4 {[%emt 0:00:00]} 8. cxd4 {[%emt 0:00:09]} f6 {[%emt 0:00:00]} 9. exf6 {[%emt 0:00:11]} Nxf6 {[%emt 0:00:00]} 10. O-O {[%emt 0:00:29]} Bd6 {[%emt 0:00:00]} 11. Nf3 {[%emt 0:00:07]} Qc7 {[%emt 0:00:09]} 12. Bd2 {[%emt 0:00:13]} O-O {[%emt 0:01:11]} 13. Rc1 {[%emt 0:00:14]} Bd7 {[%emt 0:05:32]} 14. Ng3 {[%emt 0:01:37]} Qb6 {[%emt 0:05:10]} 15. Bc3 {[%emt 0:00:18]} Nb4 {[%emt 0:06:09]} 16. Bb1 {[%emt 0:03:35]} Bb5 {[%emt 0:10:12]} 17. Re1 {[%emt 0:00:59]} Rae8 {[%emt 0:02:54]} 18. Ne5 {[%emt 0:04:03]} Nc6 {[%emt 0:04:17]} 19. f4 {[%emt 0:01:48]} Bxe5 {[%emt 0:12:06]} 20. fxe5 {[%emt 0:00:25]} Ne4 {[%emt 0:03:36]} 21. Nxe4 {[%emt 0:04:55]} dxe4 {[%emt 0:00:01]} 22. Bxe4 {[%emt 0:01:55]} Nxe5 {[%emt 0:03:07]} 23. a4 {[%emt 0:03:20]} Ba6 {[%emt 0:11:08]} 24. a5 {[%emt 0:00:17]} Qd8 {[%emt 0:02:38]} 25. dxe5 {[%emt 0:02:01]} Qh4 {[%emt 0:02:02]} 26. Qd2 {[%emt 0:12:13]} Rf7 {[%emt 0:03:17]} 27. Bb4 {[%emt 0:01:25]} g5 {[%emt 0:02:05]} 28. Qe3 {[%emt 0:02:52]} g4 {[%emt 0:01:18]} 29. Bd6 {[%emt 0:01:17]} Qd8 {[%emt 0:03:53]} 30. Bd3 {[%emt 0:01:57]} Bxd3 {[%emt 0:01:41]} 31. Qxd3 {[%emt 0:00:02]} Qxa5 {[%emt 0:00:17]} 32. Qd4 {[%emt 0:00:20]} Rg7 {[%emt 0:01:19]} 33. Rf1 {[%emt 0:00:38]} g3 {[%emt 0:00:43]} 34. h3 {[%emt 0:00:13]} a6 {[%emt 0:02:16]} 35. Rf4 {[%emt 0:00:59]} Kh8 {[%emt 0:00:00]} 36. Rcf1 {[%emt 0:00:23]} Reg8 {[%emt 0:00:00]} 37. Rf8 {[%emt 0:01:11]} Qd8 {[%emt 0:00:16]} 38. Rxd8 {[%emt 0:00:10]} 1-0

[Event "11th LCC FIDE Open 2019"]
[Site "London"]
[Date "2019.12.05"]
[Round "9.32"]
[White "Hill, Alistair"]
[Black "Ciocan, Maria-Alexandra"]
[Result "1-0"]
[ECO "B27"]
[WhiteElo "2193"]
[BlackElo "2058"]
[Annotator "NA"]
[PlyCount "33"]
[EventDate "2019.11.29"]
[EventType "swiss"]
[EventCountry "ENG"]
[SourceTitle "playchess.com"]
[Source "ChessBase"]
[SourceQuality "1"]
[TimeControl "40/5400+30:1800+30"]

1. e4 {[%emt 0:00:00]} c5 {[%emt 0:02:34]} 2. Nf3 {[%emt 0:00:15]} g6 {[%emt 0:00:07]} 3. c3 {[%emt 0:04:34]} d5 {[%emt 0:08:50]} 4. exd5 {[%emt 0:01:20]} Qxd5 {[%emt 0:01:18]} 5. d4 {[%emt 0:00:05]} cxd4 {[%emt 0:06:00]} 6. cxd4 {[%emt 0:02:18]} Bg7 {[%emt 0:00:32]} 7. Nc3 {[%emt 0:00:52]} Qa5 {[%emt 0:05:43]} 8. Qb3 {[%emt 0:12:37]} Nf6 {[%emt 0:12:15]} 9. Bb5+ {[%emt 0:03:43]} Bd7 {[%emt 0:05:09]} 10. Ne5 {[%emt 0:18:05]} O-O {[%emt 0:03:07]} 11. Bc4 {[%emt 0:02:40]} Be8 {[%emt 0:08:54]} 12. Qxb7 {[%emt 0:04:05]} Nbd7 {[%emt 0:00:14]} 13. Nc6 {[%emt 0:04:29]} Qb6 {[%emt 0:03:52]} 14. Qxa8 {[%emt 0:00:30]} e5 {[%emt 0:09:25]} 15. O-O {[%emt 0:03:01]} exd4 {[%emt 0:02:00]} 16. Ne7+ {[%emt 0:00:30]} Kh8 {[%emt 0:00:07]} 17. Ncd5 {[%emt 0:00:07]} 1-0

[Event "11th LCC FIDE Open 2019"]
[Site "London"]
[Date "2019.12.05"]
[Round "9.33"]
[White "Russell, Christopher"]
[Black "Ifalore, Michael"]
[Result "1-0"]
[ECO "C55"]
[WhiteElo "2190"]
[BlackElo "1989"]
[Annotator "NA"]
[PlyCount "61"]
[EventDate "2019.11.29"]
[EventType "swiss"]
[EventCountry "ENG"]
[SourceTitle "playchess.com"]
[Source "ChessBase"]
[SourceQuality "1"]
[TimeControl "40/5400+30:1800+30"]

1. e4 {[%emt 0:00:00]} e5 {[%emt 0:00:00]} 2. Nf3 {[%emt 0:00:00]} Nc6 {[%emt 0:00:00]} 3. Bc4 {[%emt 0:00:00]} Nf6 {[%emt 0:00:00]} 4. d3 {[%emt 0:00:09]} Be7 {[%emt 0:00:00]} 5. O-O {[%emt 0:00:08]} O-O {[%emt 0:00:00]} 6. Re1 {[%emt 0:00:09]} d6 {[%emt 0:00:00]} 7. a4 {[%emt 0:00:16]} Na5 {[%emt 0:00:00]} 8. Ba2 {[%emt 0:00:11]} c5 {[%emt 0:00:00]} 9. c3 {[%emt 0:00:16]} Nc6 {[%emt 0:00:03]} 10. Na3 {[%emt 0:00:16]} Be6 {[%emt 0:00:27]} 11. Bxe6 {[%emt 0:04:49]} fxe6 {[%emt 0:00:05]} 12. Nc4 {[%emt 0:00:07]} b6 {[%emt 0:11:51]} 13. Bd2 {[%emt 0:06:11]} Nd7 {[%emt 0:03:42]} 14. Rc1 {[%emt 0:10:10]} Qe8 {[%emt 0:06:20]} 15. b4 {[%emt 0:06:17]} cxb4 {[%emt 0:02:32]} 16. cxb4 {[%emt 0:00:36]} Nd4 {[%emt 0:00:07]} 17. Nxd4 {[%emt 0:11:18]} exd4 {[%emt 0:00:04]} 18. Qg4 {[%emt 0:00:29]} Qf7 {[%emt 0:00:30]} 19. Rf1 {[%emt 0:01:19]} a6 {[%emt 0:08:14]} 20. f4 {[%emt 0:05:40]} Rad8 {[%emt 0:01:54]} 21. Rf3 {[%emt 0:04:49]} Rc8 {[%emt 0:06:14]} 22. Rcf1 {[%emt 0:06:14]} b5 {[%emt 0:00:14]} 23. axb5 {[%emt 0:00:38]} axb5 {[%emt 0:00:04]} 24. Na3 {[%emt 0:00:48]} Rb8 {[%emt 0:02:05]} 25. Qh3 {[%emt 0:03:07]} Rb7 {[%emt 0:01:52]} 26. Nc2 {[%emt 0:02:13]} e5 {[%emt 0:08:20]} 27. fxe5 {[%emt 0:04:55]} Qa2 {[%emt 0:02:13]} 28. Nxd4 {[%emt 0:02:13]} Qxd2 {[%emt 0:01:41]} 29. Qe6+ {[%emt 0:01:43]} Kh8 {[%emt 0:00:38]} 30. Qxe7 {[%emt 0:00:14]} Rg8 {[%emt 0:01:08]} 31. Qxd6 {[%emt 0:02:32]} 1-0

[Event "11th LCC FIDE Open 2019"]
[Site "London"]
[Date "2019.12.05"]
[Round "9.37"]
[White "Stanisz, Patryk"]
[Black "Pellicoro, Nathalie"]
[Result "1-0"]
[ECO "A44"]
[WhiteElo "2139"]
[BlackElo "1967"]
[Annotator "NA"]
[PlyCount "51"]
[EventDate "2019.11.29"]
[EventType "swiss"]
[EventCountry "ENG"]
[SourceTitle "playchess.com"]
[Source "ChessBase"]
[SourceQuality "1"]
[TimeControl "40/5400+30:1800+30"]

1. d4 {[%emt 0:00:00]} Nf6 {[%emt 0:00:00]} 2. Nc3 {[%emt 0:00:00]} c5 {[%emt 0:01:39]} 3. d5 {[%emt 0:00:28]} e5 {[%emt 0:10:10]} 4. e4 {[%emt 0:02:39]} d6 {[%emt 0:02:35]} 5. Be2 {[%emt 0:02:06]} g6 {[%emt 0:03:06]} 6. g4 {[%emt 0:00:25]} h5 {[%emt 0:07:43]} 7. g5 {[%emt 0:05:32]} Nfd7 {[%emt 0:04:32]} 8. a4 {[%emt 0:03:31]} Na6 {[%emt 0:12:39]} 9. Nb5 {[%emt 0:05:11]} Nc7 {[%emt 0:01:11]} 10. Nf3 {[%emt 0:08:48]} Nxb5 {[%emt 0:03:23]} 11. axb5 {[%emt 0:00:27]} Nb6 {[%emt 0:08:29]} 12. Be3 {[%emt 0:04:40]} h4 {[%emt 0:01:15]} 13. Nd2 {[%emt 0:00:34]} Be7 {[%emt 0:00:38]} 14. Rg1 {[%emt 0:00:11]} Bd7 {[%emt 0:03:10]} 15. f4 {[%emt 0:04:59]} Qc7 {[%emt 0:04:17]} 16. Rf1 {[%emt 0:08:40]} f6 {[%emt 0:02:05]} 17. fxe5 {[%emt 0:06:10]} fxe5 {[%emt 0:00:41]} 18. Ra3 {[%emt 0:00:06]} Qd8 {[%emt 0:04:15]} 19. Rg1 {[%emt 0:00:17]} Qc7 {[%emt 0:00:03]} 20. Qa1 {[%emt 0:06:10]} Qb8 {[%emt 0:02:49]} 21. Bf2 {[%emt 0:00:43]} Kd8 {[%emt 0:01:49]} 22. Nf3 {[%emt 0:03:08]} h3 {[%emt 0:00:12]} 23. b4 {[%emt 0:00:35]} Kc7 {[%emt 0:00:56]} 24. bxc5 {[%emt 0:01:10]} dxc5 {[%emt 0:00:46]} 25. Nxe5 {[%emt 0:01:48]} Be8 {[%emt 0:00:21]} 26. Nd3 {[%emt 0:03:58]} 1-0